fUSD/lending_fUSD_20240113
["ID","MTS","AMOUNT","RATE_DAILY","PERIOD"]
[311441969,1705115445925,-21268.7,0.00023,2]
[311441970,1705115446047,-1102.74167354,0.00023,2]
[311441971,1705115446112,-455.8499999,0.00023,2]
[311441972,1705115492053,3530.0,0.00031,120]
[311441973,1705116153835,209.0,0.00022671,2]
[311441974,1705116269942,500.0,0.00026,30]
[311441975,1705116387732,506.66617549,0.00031,120]
[311441988,1705116631902,-156.64016686,0.000228,2]
[311441989,1705116631912,-179.84211174,0.00022899,2]
[311441990,1705116631925,-120.15788826,0.00022899,2]
[311441991,1705116631934,-892.0755994,0.000229,2]
[311441992,1705116632013,-671.04925394,0.000229,2]
[311441993,1705116632066,-42511.92042875,0.000229,2]
[311441994,1705116632077,-310.0,0.000229,2]
[311441995,1705116632125,-2160.88101844,0.000229,2]
[311441996,1705116632137,-2377.12429688,0.000229,2]
[311441997,1705116632149,-2847.51283554,0.000229,2]
[311441998,1705116632161,-318.92414577,0.000229,2]
[311441999,1705116632172,-366.91487999,0.000229,2]
[311442024,1705116632383,-5358.58117557,0.000229,2]
[311442031,1705116638094,-185.01636572,0.000229,2]
[311442032,1705116638103,-597.45994781,0.000229,2]
[311442033,1705116638113,-151.84493934,0.000229,2]
[311442034,1705116638122,-498.7770627,0.00022999,2]
[311442035,1705116638131,-6646.77413614,0.00022999,2]
[311442036,1705116638254,-76666.28760934,0.00022999,2]
[311442037,1705116638445,-186811.56244289,0.00023,2]
[311442102,1705116641119,-413.16544346,0.00023,2]
[311442103,1705116641255,-846.9,0.00023,2]
[311442105,1705116641383,-9005.8,0.00023,2]
[311442109,1705116642907,-252.45775948,0.00023,2]
[311442110,1705116643524,-5965.786023,0.00023,2]
[311442111,1705116646079,-6370.43999999,0.00023,2]
[311442112,1705116656941,1000.0,0.00022309,2]
[311442113,1705116699892,150.00000001,0.00022637,2]
[311442117,1705117545466,-4070.0,0.000229,2]
[311442156,1705117825010,40000.0,0.00023,6]
[311442171,1705117832105,-442.78331631,0.000229,2]
[311442172,1705117832197,-300.0,0.000229,2]
[311442173,1705117832210,-257.21668369,0.000229,2]
[311442174,1705117832221,-776.48331631,0.000229,2]
[311442175,1705117832232,-1009.20539725,0.000229,2]
[311442176,1705117832265,-266.569,0.000229,2]
[311442177,1705117832276,-262.55214922,0.000229,2]
[311442178,1705117832288,-2322.075,0.000229,2]
[311442179,1705117832299,-1127.90296006,0.000229,2]
[311442180,1705117832310,-461.57652245,0.000229,2]
[311442181,1705117832373,-461.01339771,0.000229,2]
[311442182,1705117832446,-823.78883687,0.000229,2]
[311442214,1705117838392,-2880.62095521,0.000229,2]
[311442215,1705117838425,-1378.25040696,0.000229,2]
[311442216,1705117838451,-3268.17354022,0.000229,2]
[311442217,1705117838470,-32357.10551774,0.000229,2]
[311442218,1705117838479,-13958.3983,0.000229,2]
[311442219,1705117838489,-400.0,0.00022998,2]
[311442220,1705117838498,-4715.02995978,0.00022998,2]
[311442221,1705117838507,-653.53005791,0.00022998,2]
[311442222,1705117838516,-1633.57049775,0.00022999,2]
[311442223,1705117838525,-80349.0939171,0.00023,2]
[311442224,1705117838534,-434.20947536,0.00023,2]
[311442225,1705117838546,-50699.06227436,0.00023,2]
[311442226,1705117838585,-186811.56244289,0.00023,2]
[311442227,1705117838629,-13631.31610703,0.00023,2]
[311442367,1705117841380,-863.24479642,0.00023,2]
[311442370,1705117841396,-1250.511229,0.00023,2]
[311442439,1705117843109,-804.09512674,0.00023,2]
[311442440,1705117843121,-3832.75112191,0.00023,2]
[311442441,1705117843230,-5022.32071108,0.00023,2]
[311442442,1705117843241,-514.25668124,0.00023,2]
[311442443,1705117843334,-43994.69930935,0.00023,2]
[311442445,1705117927955,150.0,0.00022697,2]
[311442448,1705118304853,641.0,0.0002277,2]
[311442449,1705118338858,275.84,0.00022704,2]
[311442489,1705118674148,209.0,0.00021893,2]
[311442492,1705118757154,262.04,0.00022767,2]
[311442505,1705118842608,200.0,0.000222,8]
[311442506,1705118845447,500.0,0.000223,8]
[311442507,1705118846995,700.0,0.000224,8]
[311442508,1705118849090,1000.0,0.000225,8]
[311442509,1705118851168,1300.0,0.000226,8]
[311442510,1705118853406,200.0,0.000227,8]
[311442511,1705118855851,200.0,0.000228,8]
[311442512,1705118857426,200.0,0.000229,8]
[311442515,1705118978288,150.0,0.00030136,120]
[311442516,1705118978637,150.0,0.00030136,120]
[311442517,1705118978861,150.0,0.00030136,120]
[311442518,1705118979134,150.0,0.00030136,120]
[311442519,1705118979345,150.0,0.00030136,120]
[311442520,1705118979627,150.0,0.00030136,120]
[311442521,1705118979898,163.75495152,0.00030136,120]
[311442531,1705119032361,-150.0,0.00022854,2]
[311442532,1705119032372,-1065.03577312,0.00022889,3]
[311442533,1705119032383,-1158.45306986,0.00022889,3]
[311442534,1705119032417,-566.4447676,0.00022889,3]
[311442535,1705119032530,-2929.20380186,0.00022889,3]
[311442536,1705119032541,-357.61614109,0.00022889,3]
[311442537,1705119032581,-3285.77118433,0.00022889,3]
[311442538,1705119032592,-6718.84925178,0.00022889,3]
[311442539,1705119032603,-993.79654298,0.00022889,3]
[311442540,1705119032614,-4416.30579366,0.00022889,3]
[311442541,1705119032625,-597.28949344,0.00022889,3]
[311442542,1705119032637,-2229.56208311,0.00022889,3]
[311442563,1705119039127,-951.26132272,0.00022889,3]
[311442565,1705119039139,-455.23866117,0.00022889,3]
[311442568,1705119039151,-343.81017987,0.00022889,3]
[311442571,1705119039171,-3215.82682477,0.00022889,3]
[311442573,1705119039181,-1928.2401,0.00022894,2]
[311442575,1705119039190,-258.57620228,0.00022894,2]
[311442577,1705119039200,-258.57620226,0.00022895,2]
[311442579,1705119039209,-258.57620226,0.00022896,2]
[311442581,1705119039219,-258.57620226,0.00022897,2]
[311442583,1705119039229,-3408.0583,0.000229,2]
[311442585,1705119039238,-710.7,0.000229,2]
[311442587,1705119039247,-714.82,0.000229,2]
[311442589,1705119039256,-252.67,0.000229,2]
[311442591,1705119039265,-319.62,0.000229,2]
[311442593,1705119039274,-283.49,0.000229,2]
[311442595,1705119039284,-387.23,0.000229,2]
[311442597,1705119039293,-1379.05,0.000229,2]
[311442599,1705119039302,-183.80665446,0.000229,2]
[311442601,1705119039311,-747.45974529,0.000229,2]
[311442603,1705119039320,-209.89758325,0.000229,2]
[311442605,1705119039329,-749.61420263,0.000229,2]
[311442607,1705119039338,-151.84493934,0.000229,2]
[311442609,1705119039347,-50358.55205899,0.000229,2]
[311442611,1705119039356,-187.95872347,0.000229,2]
[311442613,1705119039368,-733.96,0.000229,2]
[311442615,1705119039378,-734.47,0.000229,2]
[311442617,1705119039387,-261934.9143886,0.00022994,2]
[311442619,1705119039396,-2279.8026755,0.00022994,2]
[311442621,1705119039405,-712.62,0.00022999,2]
[311442623,1705119039414,-737.87,0.00022999,2]
[311442625,1705119039423,-150.01,0.00022999,2]
[311442627,1705119039433,-3293.04376977,0.00022999,2]
[311442629,1705119039442,-150.0,0.00022999,2]
[311442631,1705119039451,-150.0,0.00022999,2]
[311442633,1705119039460,-150.0,0.00022999,2]
[311442635,1705119039469,-150.0,0.00022999,2]
[311442637,1705119039478,-150.0,0.00022999,2]
[311442639,1705119039487,-150.0,0.00022999,2]
[311442641,1705119039496,-150.0,0.00022999,2]
[311442643,1705119039505,-150.0,0.00022999,2]
[311442645,1705119039514,-1457123.61976413,0.00023,2]
[311442647,1705119039523,-732.53,0.00023,2]
[311442649,1705119039533,-12078154.22546524,0.00023,2]
[311442652,1705119039546,-824976.04090568,0.00023,2]
[311442654,1705119039557,-186811.56244289,0.00023,2]
[311442659,1705119039594,-11161.63628595,0.00023,2]
[311442662,1705119039615,-18927.45371439,0.00023,2]
[311442677,1705119039741,-609.47680672,0.00023,2]
[311442680,1705119039768,-424.88308538,0.00023,2]
[311442683,1705119039780,-2929.77548137,0.00023,2]
[311442767,1705119040904,-258.57620226,0.00022897,2]
[311442768,1705119040913,-3156.51900566,0.00023,2]
[311442769,1705119040926,-333.32138002,0.00023,2]
[311442770,1705119041781,-865.44923091,0.00023,2]
[311442771,1705119041792,-322.87653265,0.00023,2]
[311442772,1705119041803,-280.69400187,0.00023,2]
[311442773,1705119041815,-427.03158,0.00023,2]
[311442774,1705119041830,-455.43,0.00023,2]
[311442788,1705119043277,-215.32122824,0.00022999,2]
[311442789,1705119043287,-2775.33655176,0.00022999,2]
[311442790,1705119043298,-517.70721801,0.00022999,2]
[311442791,1705119043307,-7055.70134917,0.00023,2]
[311442793,1705119043319,-5858.94716729,0.00023,2]
[311442794,1705119043349,-395.57673,0.00023,2]
[311442795,1705119043361,-312.17694227,0.00023,2]
[311442796,1705119043551,-65375.27254572,0.00023,2]
[311442797,1705119043563,-925.81620018,0.00023,2]
[311442800,1705119046410,-258.57620226,0.00022898,2]
[311442801,1705119046419,-1837.95835901,0.00023,2]
[311442802,1705119046575,-614.40359394,0.00023,2]
[311442803,1705119046632,-719.8,0.00023,2]
[311442808,1705119123609,300.0,0.00026,30]
[311442809,1705119124648,300.56528143,0.00026,28]
[311442810,1705119183927,305.27218497,0.00026,30]
[311442817,1705119715382,248.93,0.00022685,2]
[311442818,1705119799552,200.0,0.00022503,2]
[311442819,1705119799957,200.0,0.00022504,2]
[311442820,1705119804140,800.0,0.00022503,2]
[311442821,1705119804476,800.0,0.00022503,2]
[311442822,1705119804910,800.0,0.00022504,2]
[311442823,1705119805251,800.0,0.00022504,2]
[311442824,1705119805727,800.0,0.00022504,2]
[311442825,1705119813709,200.0,0.00022504,2]
[311442833,1705120151885,236.48,0.00020942,2]
[311442842,1705120231542,-516.42398995,0.0002288,2]
[311442843,1705120231621,-2685.65055462,0.0002288,2]
[311442844,1705120231637,-427.54939875,0.0002288,2]
[311442858,1705120237589,-9779.69458112,0.0002288,2]
[311442859,1705120237643,-28626.37655391,0.0002288,2]
[311442860,1705120237722,-2495.97347946,0.0002288,2]
[311442861,1705120237886,-824976.04090568,0.0002288,2]
[311442862,1705120237898,-186811.56244289,0.0002288,2]
[311442871,1705120239943,-7595.04960545,0.0002288,2]
[311442872,1705120240109,-767.34705557,0.0002288,2]
[311442876,1705120240992,-347.96609508,0.0002288,2]
[311442896,1705120242536,-2419.7351,0.0002288,2]
[311442897,1705120242645,-1380.25497803,0.0002288,2]
[311442898,1705120242661,-1428.25620969,0.0002288,2]
[311442899,1705120242703,-4411.07877857,0.0002288,2]
[311442901,1705120245507,-2609.23511465,0.0002288,2]
[311442902,1705120247841,-299.975,0.0002288,2]
[311442907,1705120255659,1000.0,0.0002221,2]
[311442908,1705120261023,250.0,0.0002262,2]
[311442914,1705120379867,158.14,0.00022762,2]
[311442915,1705120398656,200.0,0.0002258,2]
[311442916,1705120403475,800.0,0.00022579,2]
[311442917,1705120411463,800.0,0.0002258,2]
[311442918,1705120412128,800.0,0.0002258,2]
[311442919,1705120418957,204.310091,0.0002258,2]
[311442920,1705120427242,173.7,0.00022453,2]
[311442921,1705120465900,754.0603,0.00022798,2]
[311442922,1705120525829,3408.0583,0.00022798,2]
[311442923,1705120555337,230.4,0.000226,2]
[311442924,1705120581908,280.93,0.00022713,2]
[311442925,1705120586475,224.65,0.0002082,2]
[311442926,1705120607450,23900.0,0.00022574,2]
[311442927,1705120648257,2000.0,0.00022731,2]
[311442929,1705120681734,3408.0583,0.00022798,2]
[311442930,1705120838869,3408.0583,0.00022798,2]
[311442931,1705120913194,158.14,0.00022454,2]
[311442932,1705120942085,164867.0,0.00031,120]
[311442933,1705120966054,-282.76865847,0.00022799,2]
[311442934,1705120966081,-86419.23292983,0.0002288,2]
[311442935,1705120966107,-500.0,0.00022885,2]
[311442936,1705120966134,-521.5773,0.00022885,2]
[311442937,1705120966162,-175.33915619,0.00022895,2]
[311442938,1705120966189,-207.2278993,0.00022895,2]
[311442939,1705120966218,-156.35228911,0.00022895,2]
[311442940,1705120966247,-298.59725246,0.00022895,2]
[311442941,1705120966275,-263.88164645,0.00022896,2]
[311442942,1705120966302,-4287.41516768,0.00022897,2]
[311442943,1705120966330,-2627.7056333,0.00022897,2]
[311442944,1705120966356,-197.55667812,0.00022897,2]
[311442945,1705120966381,-155.63704032,0.00022897,2]
[311442946,1705120966408,-22623.08727404,0.00022897,2]
[311442947,1705120966434,-365.12096167,0.00022897,2]
[311442948,1705120966460,-155.36526296,0.00022897,2]
[311442949,1705120966486,-266.36730882,0.00022898,2]
[311442950,1705120966512,-237.18763947,0.00022898,2]
[311442951,1705120967091,-461461.02533385,0.00022898,2]
[311442952,1705120973496,878.5619,0.00022798,2]
[311442954,1705120998771,200.0,0.00022616,2]
[311442955,1705121002201,800.0,0.00022616,2]
[311442956,1705121004581,815.68,0.000222,2]
[311442957,1705121010830,-6970.7770624,0.00022893,2]
[311442958,1705121010858,-155.50366355,0.00022895,2]
[311442959,1705121010884,-5438.36025782,0.00022895,2]
[311442960,1705121010910,-173.79301003,0.00022895,2]
[311442961,1705121010937,-698.39676851,0.00022895,2]
[311442962,1705121010966,-2788.50719575,0.00022897,2]
[311442963,1705121010992,-200.07066595,0.00022897,2]
[311442964,1705121011017,-10287.50155422,0.00022897,2]
[311442965,1705121011336,-141574.17964354,0.00022898,2]
[311442966,1705121050365,-5260.71378437,0.00022897,2]
[311442967,1705121050394,-105486.05060391,0.00022898,2]
[311442968,1705121063592,-245000.0,0.00022899,2]
[311442969,1705121063643,-722.6,0.00022929,2]
[311442970,1705121063685,-719.44,0.00022949,2]
[311442971,1705121063760,-713.18,0.00022985,2]
[311442972,1705121063821,-155.67,0.00022991,2]
[311442973,1705121063874,-2029.0,0.00022992,2]
[311442974,1705121063923,-499.99,0.00022993,2]
[311442975,1705121063970,-3293.04376977,0.00022999,2]
[311442976,1705121064344,-209475.1966839,0.00023,2]
[311442977,1705121092855,74271.25692714,0.00022798,2]
[311442978,1705121097371,-155038.45047286,0.00022798,2]
[311442979,1705121097416,-83614.52605428,0.00022992,2]
[311442980,1705121120252,-247.42257617,0.000229,2]
[311442981,1705121120279,-28149.89655234,0.00022992,2]
[311442982,1705121120306,-714.01,0.00022992,2]
[311442983,1705121120332,-3293.04376977,0.00022999,2]
[311442984,1705121120359,-1783.0,0.00022999,2]
[311442985,1705121120462,-35625.25420344,0.00023,2]
[311442986,1705121129468,-3293.04376977,0.00022999,2]
[311442987,1705121129511,-43413.91246046,0.00023,2]
[311442988,1705121136540,-3293.04376977,0.00022999,2]
[311442989,1705121136571,-1599.0,0.00023,2]
[311442990,1705121136628,-10215.91246046,0.00023,2]
[311442992,1705121160876,213.41,0.00022284,2]
[311442993,1705121165920,350.36534944,0.00022999,10]
[311443012,1705121432361,-209.0,0.00022514,2]
[311443013,1705121432371,-216.49475414,0.000229,2]
[311443014,1705121432379,-260.64724288,0.000229,2]
[311443015,1705121432388,-259.29398565,0.00022973,2]
[311443016,1705121432446,-451.79601435,0.00022973,2]
[311443017,1705121432455,-732.54,0.00022999,2]
[311443018,1705121432466,-3293.04376977,0.00022999,2]
[311443019,1705121432475,-218.58059998,0.00023,3]
[311443020,1705121433543,-1086.38836078,0.00023,3]
[311443021,1705121433553,-9637.51084119,0.00023,2]
[311443022,1705121433595,-13330.81424218,0.00023,2]
[311443131,1705121437800,-3293.04376977,0.00022999,2]
[311443132,1705121437815,-110.71239508,0.00023,2]
[311443133,1705121437834,-268.83660001,0.00023,2]
[311443134,1705121437910,-94960.46453859,0.00023,2]
[311443135,1705121438020,-303.49290042,0.00023,2]
[311443136,1705121438130,-858.74623956,0.00023,2]
[311443138,1705121440296,-3293.04376977,0.00022999,2]
[311443139,1705121440305,-990.65623023,0.00023,2]
[311443171,1705121443050,-1267.53629767,0.00023,2]
[311443175,1705121443085,-723.96075922,0.00023,2]
[311443176,1705121443120,-4912.74852319,0.00023,2]
[311443177,1705121443133,-699.92009027,0.00023,2]
[311443183,1705121445797,-3293.04376977,0.00022999,2]
[311443184,1705121445808,-2901.5988306,0.00023,2]
[311443185,1705121445927,-2401.0,0.00023,2]
[311443186,1705121445940,-2750.31579908,0.00023,2]
[311443187,1705121445965,-441.14326201,0.00023,2]
[311443188,1705121445984,-18949.00465234,0.00023,2]
[311443189,1705121445995,-19845.27820285,0.00023,2]
[311443190,1705121446007,-2167.77944775,0.00023,2]
[311443193,1705121447547,1000.0,0.00022309,2]
[311443194,1705121461803,724.53776105,0.00022308,2]
[311443195,1705121466353,1880.91039073,0.00022078,2]
[311443201,1705121587404,500.0,0.000219,2]
[311443202,1705121588017,500.0,0.00021901,2]
[311443203,1705121588196,500.0,0.00021901,2]
[311443204,1705121588459,500.0,0.00021901,2]
[311443205,1705121588737,500.0,0.00021901,2]
[311443206,1705121588965,500.0,0.00021901,2]
[311443207,1705121589210,500.0,0.00021901,2]
[311443208,1705121589488,500.0,0.00021901,2]
[311443209,1705121589713,500.0,0.00021901,2]
[311443210,1705121590003,500.0,0.00021901,2]
[311443211,1705121595505,200.0,0.00021901,2]
[311443212,1705121598752,200.0,0.00021918,2]
[311443213,1705121602711,800.0,0.00021918,2]
[311443214,1705121657501,259.66,0.00020071,2]
[311443215,1705121657694,259.66,0.00022335,2]
[311443216,1705121709422,350.1,0.00022059,2]
[311443217,1705121735088,288.24,0.00022047,2]
[311443218,1705121739945,1241.67223539,0.00022046,2]
[311443219,1705121860611,652.55,0.0002197,2]
[311443220,1705121906596,230.04,0.00021946,2]
[311443221,1705121937746,150.89629431,0.00021924,2]
[311443222,1705121940436,178.28,0.00021946,2]
[311443223,1705122041431,343.81,0.00021979,2]
[311443224,1705122097476,233.69,0.00020028,2]
[311443225,1705122116296,178.92,0.00021863,2]
[311443226,1705122142478,326.76,0.00021859,2]
[311443227,1705122186910,500.0,0.00021683,2]
[311443228,1705122187141,500.0,0.00021684,2]
[311443229,1705122200593,200.0,0.00021918,2]
[311443230,1705122203771,800.0,0.00021918,2]
[311443231,1705122309937,477.96,0.00021792,2]
[311443232,1705122340041,1482.84,0.00021958,2]
[311443234,1705122370432,188.19,0.00021792,2]
[311443244,1705122625030,222.0,0.00019884,2]
[311443247,1705122631923,-156.26,0.00022005,2]
[311443248,1705122631933,-158.14,0.0002201,2]
[311443249,1705122631943,-156.26,0.00022077,2]
[311443250,1705122631951,-222.0,0.00022148,2]
[311443251,1705122631960,-156.26,0.00022148,2]
[311443252,1705122631970,-156.26,0.0002222,2]
[311443253,1705122631979,-165.18,0.00022221,2]
[311443254,1705122631988,-156.26,0.00022292,2]
[311443255,1705122631998,-154.70705193,0.0002232,2]
[311443256,1705122632008,-156.26,0.00022363,2]
[311443257,1705122632017,-1679.36739312,0.000224,2]
[311443258,1705122632026,-154.70705193,0.00022403,2]
[311443259,1705122632035,-499.99,0.00022403,2]
[311443260,1705122632044,-156.26,0.00022435,2]
[311443261,1705122632054,-154.70705193,0.00022486,2]
[311443262,1705122632063,-150.0,0.00022498,2]
[311443263,1705122632073,-156.26,0.00022507,2]
[311443264,1705122632082,-3056.56,0.00022564,2]
[311443265,1705122632091,-154.70705193,0.00022569,2]
[311443266,1705122632101,-156.26,0.00022578,2]
[311443267,1705122632110,-412.12,0.000226,2]
[311443268,1705122632119,-300.0,0.000226,2]
[311443269,1705122632128,-401.15,0.000226,2]
[311443270,1705122632138,-151.52,0.000226,2]
[311443271,1705122632147,-74.20486846,0.000226,2]
[311443272,1705122632162,-865.74513154,0.000226,2]
[311443273,1705122632172,-156.26,0.0002265,2]
[311443274,1705122632181,-152.55504057,0.00022651,2]
[311443275,1705122632193,-2.15201136,0.00022651,2]
[311443276,1705122632203,-178.28,0.00022678,2]
[311443277,1705122632212,-149.23511568,0.00022686,2]
[311443278,1705122632289,-0.76488432,0.00022686,2]
[311443279,1705122632298,-349.23511568,0.000227,2]
[311443280,1705122632311,-51.91488432,0.000227,2]
[311443281,1705122632322,-798.08511568,0.000227,2]
[311443282,1705122632334,-55.13488432,0.000227,2]
[311443283,1705122632343,-392.16629602,0.000227,2]
[311443285,1705122632373,-547.78370398,0.000227,2]
[311443287,1705122632383,-156.26,0.00022722,2]
[311443289,1705122632392,-302.68207572,0.00022733,2]
[311443291,1705122632402,-154.70705193,0.00022734,2]
[311443293,1705122632411,-576.01,0.0002274,2]
[311443295,1705122632421,-379.20768059,0.0002274,2]
[311443300,1705122632466,-28.79231941,0.0002274,2]
[311443302,1705122632477,-408.0,0.0002274,2]
[311443303,1705122632487,-20.01827705,0.00022745,2]
[311443385,1705122636602,304.97,0.00021884,2]
[311443387,1705122637889,-129.98172295,0.00022745,2]
[311443388,1705122637899,-150.0,0.0002275,2]
[311443389,1705122637908,-150.0,0.0002276,2]
[311443390,1705122637918,-150.0,0.00022764,2]
[311443391,1705122637927,-1541.76067428,0.00022764,2]
[311443392,1705122637937,-150.0,0.00022767,2]
[311443393,1705122637947,-487.81588704,0.00022768,2]
[311443394,1705122637956,-1405.01937321,0.00022768,2]
[311443395,1705122637977,-147.62201999,0.00022768,2]
[311443396,1705122637986,-150.0,0.0002277,2]
[311443397,1705122637995,-1500.0,0.00022771,2]
[311443398,1705122638005,-150.0,0.00022773,2]
[311443399,1705122638014,-150.0,0.00022778,2]
[311443400,1705122638023,-150.0,0.0002279,2]
[311443401,1705122638032,-156.26,0.00022793,2]
[311443402,1705122638042,-150.0,0.00022794,2]
[311443403,1705122638052,-58890.7799,0.000228,2]
[311443404,1705122638061,-1500.0,0.000228,2]
[311443405,1705122638071,-150.0,0.00022801,2]
[311443406,1705122638082,-150.0,0.00022802,2]
[311443407,1705122638091,-150.0,0.00022804,2]
[311443408,1705122638101,-150.0,0.00022814,2]
[311443409,1705122638111,-154.70705193,0.00022817,2]
[311443410,1705122638120,-150.0,0.00022818,2]
[311443411,1705122638129,-150.0,0.00022821,2]
[311443412,1705122638138,-150.0,0.00022823,2]
[311443413,1705122638147,-150.0,0.00022831,2]
[311443414,1705122638157,-150.0,0.00022834,2]
[311443415,1705122638167,-150.0,0.00022835,2]
[311443416,1705122638176,-304.97,0.00022862,2]
[311443417,1705122638186,-150.0,0.00022863,2]
[311443418,1705122638195,-1500.0,0.00022864,2]
[311443419,1705122638205,-156.26,0.00022865,2]
[311443420,1705122638215,-150.0,0.00022876,2]
[311443421,1705122638225,-150.0,0.00022876,2]
[311443422,1705122638235,-293.29955994,0.00022878,2]
[311443423,1705122638245,-199.90214082,0.00022881,2]
[311443424,1705122638255,-564.75601805,0.00022883,2]
[311443425,1705122638265,-150.0,0.00022886,2]
[311443426,1705122638274,-189.43290989,0.00022898,2]
[311443427,1705122638284,-322.1890139,0.00022898,2]
[311443428,1705122638294,-189.43290982,0.00022898,2]
[311443429,1705122638303,-189.43290982,0.00022899,2]
[311443430,1705122638312,-189.43290982,0.00022899,2]
[311443431,1705122638322,-192.69548608,0.00022899,2]
[311443432,1705122638332,-192.69548608,0.00022899,2]
[311443433,1705122638342,-192.69548608,0.00022899,2]
[311443434,1705122638351,-192.69548608,0.00022899,2]
[311443435,1705122638360,-192.69548608,0.00022899,2]
[311443436,1705122638369,-192.69548608,0.00022899,2]
[311443437,1705122638378,-192.69548608,0.00022899,2]
[311443439,1705122638388,-192.69548608,0.00022899,2]
[311443441,1705122638397,-192.69548608,0.00022899,2]
[311443443,1705122638405,-192.69548608,0.00022899,2]
[311443445,1705122638414,-192.69548608,0.00022899,2]
[311443447,1705122638423,-192.69548608,0.00022899,2]
[311443449,1705122638432,-192.69548608,0.00022899,2]
[311443451,1705122638441,-192.69548608,0.00022899,2]
[311443453,1705122638450,-192.69548608,0.00022899,2]
[311443455,1705122638459,-192.69548608,0.00022899,2]
[311443457,1705122638468,-192.69548608,0.00022899,2]
[311443459,1705122638477,-192.69548608,0.00022899,2]
[311443461,1705122638486,-192.69548608,0.00022899,2]
[311443463,1705122638495,-192.69548608,0.00022899,2]
[311443465,1705122638504,-192.69548608,0.00022899,2]
[311443467,1705122638513,-192.69548608,0.00022899,2]
[311443469,1705122638522,-192.69548608,0.00022899,2]
[311443471,1705122638531,-192.69548608,0.00022899,2]
[311443473,1705122638540,-192.69548608,0.00022899,2]
[311443475,1705122638550,-192.69548608,0.00022899,2]
[311443477,1705122638559,-192.69548608,0.00022899,2]
[311443479,1705122638570,-192.69548608,0.00022899,2]
[311443481,1705122638581,-192.69548608,0.00022899,2]
[311443483,1705122638590,-192.69548608,0.00022899,2]
[311443485,1705122638599,-192.69548608,0.00022899,2]
[311443487,1705122638608,-192.69548608,0.00022899,2]
[311443489,1705122638617,-192.69548608,0.00022899,2]
[311443491,1705122638626,-192.69548608,0.00022899,2]
[311443493,1705122638635,-192.69548608,0.00022899,2]
[311443495,1705122638644,-19161.828,0.00022899,2]
[311443497,1705122638654,-189.43290982,0.00022899,2]
[311443499,1705122638663,-189.43290982,0.00022899,2]
[311443501,1705122638672,-189.43290982,0.000229,2]
[311443503,1705122638682,-16112.8408,0.000229,2]
[311443505,1705122638691,-794.15,0.000229,2]
[311443507,1705122638701,-4569.09506571,0.000229,2]
[311443509,1705122638711,-154.70705193,0.000229,2]
[311443511,1705122638720,-189.43290982,0.000229,2]
[311443513,1705122638729,-297.05600694,0.000229,2]
[311443515,1705122638738,-410.18190502,0.000229,2]
[311443517,1705122638748,-1803.03518993,0.000229,2]
[311443519,1705122638758,-415.50620106,0.000229,2]
[311443521,1705122638768,-187.95872347,0.000229,2]
[311443523,1705122638777,-150.0,0.00022907,2]
[311443525,1705122638787,-150.0,0.00022908,2]
[311443527,1705122638796,-150.0,0.00022916,2]
[311443529,1705122638805,-150.0,0.00022936,2]
[311443531,1705122638814,-156.26,0.00022937,2]
[311443533,1705122638823,-150.0,0.0002295,2]
[311443535,1705122638832,-150.0,0.00022962,2]
[311443537,1705122638841,-1500.0,0.00022964,2]
[311443539,1705122638851,-150.0,0.00022968,2]
[311443541,1705122638861,-150.0,0.00022968,2]